[Event "Titled Tuesday Blitz December 20 Late 2022"]
[White "Rustemov, Alexander"]
[Black "Przybylski, Wojciech"]
[WhiteFideId "4119002"]
[BlackFideId "1117599"]
[WhiteElo "2873"]
[BlackElo "2217"]
[Result "0-1"]
[Round "10"]
[TimeControl "180+1"]
[Date "2022.12.20"]
[WhiteClock "0:00:07"]
[BlackClock "0:00:16"]

1. d4 {[%clk 0:02:54]}  Nf6 {[%clk 0:02:59]} 2. c4 {[%clk 0:02:54]}  e6 {[%clk 0:02:59]} 3. Nf3 {[%clk 0:02:54]}  d5 {[%clk 0:02:59]} 4. Nc3 {[%clk 0:02:53]}  c6 {[%clk 0:02:59]} 5. e3 {[%clk 0:02:53]}  Nbd7 {[%clk 0:02:59]} 6. Qc2 {[%clk 0:02:53]}  Bd6 {[%clk 0:02:59]} 7. b3 {[%clk 0:02:53]}  O-O {[%clk 0:02:59]} 8. Be2 {[%clk 0:02:54]}  b6 {[%clk 0:02:59]} 9. O-O {[%clk 0:02:53]}  Bb7 {[%clk 0:03:00]} 10. Bb2 {[%clk 0:02:53]}  Re8 {[%clk 0:03:00]} 11. Rad1 {[%clk 0:02:53]}  Qe7 {[%clk 0:03:00]} 12. Rfe1 {[%clk 0:02:52]}  e5 {[%clk 0:02:59]} 13. dxe5 {[%clk 0:02:49]}  Nxe5 {[%clk 0:02:59]} 14. cxd5 {[%clk 0:02:46]}  cxd5 {[%clk 0:02:58]} 15. Nb5 {[%clk 0:02:38]}  Rac8 {[%clk 0:02:57]} 16. Qb1 {[%clk 0:02:30]}  Nxf3+ {[%clk 0:02:56]} 17. Bxf3 {[%clk 0:02:30]}  Bb8 {[%clk 0:02:56]} 18. Bxf6 {[%clk 0:02:07]}  Qxf6 {[%clk 0:02:56]} 19. Nd4 {[%clk 0:02:07]}  g6 {[%clk 0:02:49]} 20. g3 {[%clk 0:02:03]}  Rc5 {[%clk 0:02:47]} 21. Kg2 {[%clk 0:01:58]}  h5 {[%clk 0:02:46]} 22. h4 {[%clk 0:01:57]}  Rec8 {[%clk 0:02:45]} 23. Rd2 {[%clk 0:01:55]}  Be5 {[%clk 0:02:43]} 24. Ne2 {[%clk 0:01:50]}  Bc6 {[%clk 0:02:34]} 25. Red1 {[%clk 0:01:49]}  d4 {[%clk 0:02:14]} 26. e4 {[%clk 0:01:36]}  Rd8 {[%clk 0:02:06]} 27. a4 {[%clk 0:01:32]}  a5 {[%clk 0:01:56]} 28. Qd3 {[%clk 0:01:30]}  b5 {[%clk 0:01:48]} 29. Ra2 {[%clk 0:01:22]}  bxa4 {[%clk 0:01:44]} 30. bxa4 {[%clk 0:01:23]}  Bb7 {[%clk 0:01:43]} 31. Rc2 {[%clk 0:01:12]}  Ba6 {[%clk 0:01:42]} 32. Rxc5 {[%clk 0:01:09]}  Bxd3 {[%clk 0:01:41]} 33. Rxd3 {[%clk 0:01:10]}  Qe6 {[%clk 0:01:33]} 34. Rd5 {[%clk 0:01:02]}  Rxd5 {[%clk 0:01:26]} 35. exd5 {[%clk 0:01:03]}  Qb6 {[%clk 0:01:26]} 36. Nf4 {[%clk 0:00:48]}  Qb4 {[%clk 0:01:08]} 37. Bd1 {[%clk 0:00:45]}  Bxf4 {[%clk 0:01:06]} 38. gxf4 {[%clk 0:00:45]}  Qc4 {[%clk 0:01:06]} 39. d6 {[%clk 0:00:38]}  Qd5+ {[%clk 0:01:03]} 40. Kg3 {[%clk 0:00:35]}  Qxd6 {[%clk 0:01:03]} 41. Bb3 {[%clk 0:00:33]}  Qb4 {[%clk 0:01:01]} 42. f5 {[%clk 0:00:29]}  Qd6+ {[%clk 0:00:55]} 43. f4 {[%clk 0:00:25]}  gxf5 {[%clk 0:00:53]} 44. Bc4 {[%clk 0:00:18]}  Kf8 {[%clk 0:00:40]} 45. Bb5 {[%clk 0:00:18]}  Qg6+ {[%clk 0:00:38]} 46. Kf2 {[%clk 0:00:16]}  Qf6 {[%clk 0:00:36]} 47. Kg3 {[%clk 0:00:15]}  Ke7 {[%clk 0:00:36]} 48. Rf3 {[%clk 0:00:14]}  Kd6 {[%clk 0:00:36]} 49. Kh3 {[%clk 0:00:13]}  Qh6 {[%clk 0:00:33]} 50. Bd3 {[%clk 0:00:12]}  Qe6 {[%clk 0:00:31]} 51. Kg3 {[%clk 0:00:11]}  Qg6+ {[%clk 0:00:28]} 52. Kf2 {[%clk 0:00:11]}  Qg4 {[%clk 0:00:27]} 53. Bc2 {[%clk 0:00:10]}  Qxh4+ {[%clk 0:00:22]} 54. Kg2 {[%clk 0:00:11]}  Qg4+ {[%clk 0:00:21]} 55. Kf2 {[%clk 0:00:11]}  h4 {[%clk 0:00:21]} 56. Bd1 {[%clk 0:00:10]}  h3 {[%clk 0:00:19]} 57. Rd3 {[%clk 0:00:07]}  Qg2+ {[%clk 0:00:18]} 58. Ke1 {[%clk 0:00:07]}  Kc5 {[%clk 0:00:17]} 59. Bf3 {[%clk 0:00:07]}  Qg1+ {[%clk 0:00:16]} 60. Ke2 {[%clk 0:00:07]}  h2 {[%clk 0:00:17]} 61. Rd1 {[%clk 0:00:07]}  Qe3+ {[%clk 0:00:16]} 0-1


[Site "https://www.chess.com"]

[Event "Titled Tuesday Blitz December 20 Late 2022"]
[White "Sanchez Alvares, Kelvin Antonio"]
[Black "Li, Hui"]
[WhiteFideId "3906680"]
[BlackFideId "15400310"]
[WhiteElo "2217"]
[BlackElo "1954"]
[Result "1-0"]
[Round "10"]
[TimeControl "180+1"]
[Date "2022.12.21"]
[WhiteClock "0:00:09"]
[BlackClock "0:00:03"]

1. e4 {[%clk 0:01:44]}  e5 {[%clk 0:02:59]} 2. Nf3 {[%clk 0:01:44]}  Nf6 {[%clk 0:03:00]} 3. Nxe5 {[%clk 0:01:43]}  d6 {[%clk 0:03:00]} 4. Nf3 {[%clk 0:01:43]}  Nxe4 {[%clk 0:03:00]} 5. Qe2 {[%clk 0:01:43]}  Qe7 {[%clk 0:03:00]} 6. d3 {[%clk 0:01:43]}  Nf6 {[%clk 0:03:01]} 7. Bg5 {[%clk 0:01:43]}  Qxe2+ {[%clk 0:03:01]} 8. Bxe2 {[%clk 0:01:43]}  Be7 {[%clk 0:03:02]} 9. Nc3 {[%clk 0:01:44]}  O-O {[%clk 0:03:01]} 10. O-O-O {[%clk 0:01:44]}  c6 {[%clk 0:02:59]} 11. h3 {[%clk 0:01:43]}  Na6 {[%clk 0:02:58]} 12. Rhe1 {[%clk 0:01:41]}  Bd7 {[%clk 0:02:55]} 13. d4 {[%clk 0:01:28]}  Nc7 {[%clk 0:02:53]} 14. Bd3 {[%clk 0:01:25]}  Rfe8 {[%clk 0:02:53]} 15. g4 {[%clk 0:01:21]}  Nfd5 {[%clk 0:02:49]} 16. Nxd5 {[%clk 0:01:14]}  Nxd5 {[%clk 0:02:46]} 17. Bd2 {[%clk 0:01:11]}  Bf8 {[%clk 0:02:39]} 18. c4 {[%clk 0:01:07]}  Nc7 {[%clk 0:02:37]} 19. Bf4 {[%clk 0:00:46]}  Ne6 {[%clk 0:02:23]} 20. Be3 {[%clk 0:00:45]}  g6 {[%clk 0:02:05]} 21. Rg1 {[%clk 0:00:35]}  Bg7 {[%clk 0:02:00]} 22. h4 {[%clk 0:00:34]}  c5 {[%clk 0:01:59]} 23. dxc5 {[%clk 0:00:31]}  Bc6 {[%clk 0:01:57]} 24. Ng5 {[%clk 0:00:27]}  Nxc5 {[%clk 0:01:48]} 25. Be2 {[%clk 0:00:20]}  h6 {[%clk 0:01:40]} 26. Nf3 {[%clk 0:00:20]}  Ne4 {[%clk 0:01:39]} 27. Nd4 {[%clk 0:00:19]}  Ba4 {[%clk 0:01:35]} 28. b3 {[%clk 0:00:19]}  Bd7 {[%clk 0:01:28]} 29. Bf3 {[%clk 0:00:19]}  Rad8 {[%clk 0:01:25]} 30. h5 {[%clk 0:00:17]}  g5 {[%clk 0:01:23]} 31. Nf5 {[%clk 0:00:17]}  Bxf5 {[%clk 0:01:21]} 32. gxf5 {[%clk 0:00:17]}  b6 {[%clk 0:01:09]} 33. Kc2 {[%clk 0:00:15]}  Nc5 {[%clk 0:00:59]} 34. Rd5 {[%clk 0:00:14]}  Re5 {[%clk 0:00:57]} 35. Rgd1 {[%clk 0:00:14]}  Rxd5 {[%clk 0:00:56]} 36. Rxd5 {[%clk 0:00:14]}  Be5 {[%clk 0:00:47]} 37. b4 {[%clk 0:00:14]}  Nd7 {[%clk 0:00:46]} 38. Kb3 {[%clk 0:00:13]}  Nf6 {[%clk 0:00:45]} 39. Rd2 {[%clk 0:00:12]}  Rc8 {[%clk 0:00:32]} 40. Bb7 {[%clk 0:00:12]}  Rc7 {[%clk 0:00:31]} 41. Bd5 {[%clk 0:00:12]}  Kf8 {[%clk 0:00:28]} 42. a4 {[%clk 0:00:12]}  Nxh5 {[%clk 0:00:27]} 43. a5 {[%clk 0:00:12]}  bxa5 {[%clk 0:00:26]} 44. b5 {[%clk 0:00:12]}  Nf4 {[%clk 0:00:16]} 45. Bc6 {[%clk 0:00:12]}  h5 {[%clk 0:00:13]} 46. Ra2 {[%clk 0:00:12]}  h4 {[%clk 0:00:11]} 47. Rxa5 {[%clk 0:00:12]}  h3 {[%clk 0:00:11]} 48. Rxa7 {[%clk 0:00:09]}  Rxa7 {[%clk 0:00:08]} 49. Bxa7 {[%clk 0:00:09]}  Ke7 {[%clk 0:00:06]} 50. Be4 {[%clk 0:00:09]}  Kd8 {[%clk 0:00:05]} 51. b6 {[%clk 0:00:09]}  Bd4 {[%clk 0:00:04]} 52. Kb4 {[%clk 0:00:08]}  Bxf2 {[%clk 0:00:02]} 53. Kb5 {[%clk 0:00:08]}  g4 {[%clk 0:00:02]} 54. Ka6 {[%clk 0:00:08]}  g3 {[%clk 0:00:02]} 55. b7 {[%clk 0:00:08]}  Bxa7 {[%clk 0:00:02]} 56. Kxa7 {[%clk 0:00:08]}  g2 {[%clk 0:00:03]} 57. b8=Q+ {[%clk 0:00:09]}  Ke7 {[%clk 0:00:03]} 58. Qc7+ {[%clk 0:00:08]}  Ke8 {[%clk 0:00:04]} 59. Bc6+ {[%clk 0:00:08]}  Kf8 {[%clk 0:00:04]} 60. Qxd6+ {[%clk 0:00:08]}  Kg7 {[%clk 0:00:04]} 61. Qd4+ {[%clk 0:00:07]}  Kf8 {[%clk 0:00:03]} 62. f6 {[%clk 0:00:06]}  Kg8 {[%clk 0:00:02]} 63. Qf2 {[%clk 0:00:06]}  Kh7 {[%clk 0:00:01]} 64. Bxg2 {[%clk 0:00:05]}  Nxg2 {[%clk 0:00:01]} 65. Qf5+ {[%clk 0:00:04]}  Kh6 {[%clk 0:00:01]} 66. Qxh3+ {[%clk 0:00:05]}  Kg6 {[%clk 0:00:02]} 67. Qxg2+ {[%clk 0:00:05]}  Kxf6 {[%clk 0:00:02]} 68. Qd5 {[%clk 0:00:05]}  Ke7 {[%clk 0:00:03]} 69. c5 {[%clk 0:00:06]}  f5 {[%clk 0:00:03]} 70. c6 {[%clk 0:00:07]}  f4 {[%clk 0:00:03]} 71. c7 {[%clk 0:00:08]}  f3 {[%clk 0:00:03]} 72. c8=Q {[%clk 0:00:08]}  f2 {[%clk 0:00:03]} 73. Qc7+ {[%clk 0:00:09]} 1-0


[Site "https://www.chess.com"]

[Event "Titled Tuesday Blitz December 20 Late 2022"]
[White "Sebag, Marie"]
[Black "Rego, Pedro Filipe"]
[WhiteFideId "617822"]
[BlackFideId "1904310"]
[WhiteElo "2440"]
[BlackElo "2193"]
[Result "1-0"]
[Round "10"]
[TimeControl "180+1"]
[Date "2022.12.20"]
[WhiteClock "0:00:19"]
[BlackClock "0:00:05"]

1. c4 {[%clk 0:02:58]}  Nf6 {[%clk 0:02:58]} 2. Nc3 {[%clk 0:02:58]}  e6 {[%clk 0:02:58]} 3. g3 {[%clk 0:02:59]}  d5 {[%clk 0:02:58]} 4. d4 {[%clk 0:02:58]}  dxc4 {[%clk 0:02:52]} 5. Bg2 {[%clk 0:02:58]}  c5 {[%clk 0:02:50]} 6. Nf3 {[%clk 0:02:57]}  Nc6 {[%clk 0:02:50]} 7. Qa4 {[%clk 0:02:41]}  Bd7 {[%clk 0:02:16]} 8. Qxc4 {[%clk 0:02:17]}  b5 {[%clk 0:02:06]} 9. Qd3 {[%clk 0:02:00]}  c4 {[%clk 0:02:02]} 10. Qd1 {[%clk 0:01:56]}  b4 {[%clk 0:01:52]} 11. Nb1 {[%clk 0:01:54]}  Be7 {[%clk 0:01:44]} 12. O-O {[%clk 0:01:52]}  O-O {[%clk 0:01:33]} 13. Qc2 {[%clk 0:01:44]}  Na5 {[%clk 0:01:25]} 14. e4 {[%clk 0:01:25]}  Rc8 {[%clk 0:01:25]} 15. Rd1 {[%clk 0:01:16]}  Qb6 {[%clk 0:01:19]} 16. Bg5 {[%clk 0:01:08]}  h6 {[%clk 0:01:14]} 17. Be3 {[%clk 0:01:03]}  Ng4 {[%clk 0:01:12]} 18. Bf4 {[%clk 0:01:01]}  b3 {[%clk 0:01:00]} 19. Qe2 {[%clk 0:00:56]}  Bb5 {[%clk 0:00:56]} 20. Nc3 {[%clk 0:00:55]}  Nf6 {[%clk 0:00:50]} 21. Nxb5 {[%clk 0:00:40]}  Qxb5 {[%clk 0:00:51]} 22. axb3 {[%clk 0:00:40]}  Nxb3 {[%clk 0:00:46]} 23. Rxa7 {[%clk 0:00:40]}  Bd8 {[%clk 0:00:36]} 24. Ne5 {[%clk 0:00:33]}  Bb6 {[%clk 0:00:34]} 25. Rb7 {[%clk 0:00:27]}  Qa6 {[%clk 0:00:26]} 26. Rxb6 {[%clk 0:00:27]}  Qxb6 {[%clk 0:00:26]} 27. Be3 {[%clk 0:00:27]}  Qb5 {[%clk 0:00:24]} 28. h4 {[%clk 0:00:27]}  Rfd8 {[%clk 0:00:24]} 29. g4 {[%clk 0:00:27]}  Nd7 {[%clk 0:00:22]} 30. Nf3 {[%clk 0:00:24]}  Nf6 {[%clk 0:00:19]} 31. Ne5 {[%clk 0:00:23]}  Nd7 {[%clk 0:00:17]} 32. Nf3 {[%clk 0:00:23]}  Nf6 {[%clk 0:00:17]} 33. Nd2 {[%clk 0:00:22]}  Nxd2 {[%clk 0:00:16]} 34. Rxd2 {[%clk 0:00:22]}  Qb4 {[%clk 0:00:14]} 35. g5 {[%clk 0:00:22]}  hxg5 {[%clk 0:00:13]} 36. hxg5 {[%clk 0:00:22]}  c3 {[%clk 0:00:14]} 37. bxc3 {[%clk 0:00:21]}  Qb1+ {[%clk 0:00:15]} 38. Rd1 {[%clk 0:00:21]}  Qb3 {[%clk 0:00:08]} 39. gxf6 {[%clk 0:00:21]}  g6 {[%clk 0:00:06]} 40. Bd2 {[%clk 0:00:19]}  Ra8 {[%clk 0:00:05]} 41. Re1 {[%clk 0:00:19]}  Ra2 {[%clk 0:00:05]} 42. Qe3 {[%clk 0:00:19]}  Qc2 {[%clk 0:00:05]} 43. Qh6 {[%clk 0:00:19]} 1-0


[Site "https://www.chess.com"]

[Event "Titled Tuesday Blitz December 20 Late 2022"]
[White "Shapiro, Daniel"]
[Black "Berezin, Viktor"]
[WhiteFideId "2001780"]
[BlackFideId "14107872"]
[WhiteElo "2344"]
[BlackElo "2310"]
[Result "1-0"]
[Round "10"]
[TimeControl "180+1"]
[Date "2022.12.21"]
[WhiteClock "0:00:07"]
[BlackClock "0:01:17"]

1. d4 {[%clk 0:03:00]}  Nf6 {[%clk 0:02:58]} 2. c4 {[%clk 0:03:00]}  g6 {[%clk 0:02:55]} 3. Nc3 {[%clk 0:03:00]}  Bg7 {[%clk 0:02:56]} 4. e4 {[%clk 0:02:59]}  O-O {[%clk 0:02:56]} 5. Be2 {[%clk 0:02:59]}  d6 {[%clk 0:02:56]} 6. Nf3 {[%clk 0:03:00]}  e5 {[%clk 0:02:55]} 7. O-O {[%clk 0:02:59]}  Na6 {[%clk 0:02:56]} 8. Be3 {[%clk 0:02:58]}  Qe8 {[%clk 0:02:54]} 9. d5 {[%clk 0:02:54]}  Ng4 {[%clk 0:02:53]} 10. Bd2 {[%clk 0:02:48]}  f5 {[%clk 0:02:53]} 11. Ng5 {[%clk 0:02:17]}  Nf6 {[%clk 0:02:51]} 12. f3 {[%clk 0:02:08]}  h6 {[%clk 0:02:45]} 13. Ne6 {[%clk 0:02:07]}  Bxe6 {[%clk 0:02:45]} 14. dxe6 {[%clk 0:02:08]}  Qxe6 {[%clk 0:02:45]} 15. a3 {[%clk 0:01:58]}  fxe4 {[%clk 0:02:44]} 16. fxe4 {[%clk 0:01:56]}  Kh7 {[%clk 0:02:39]} 17. b4 {[%clk 0:01:52]}  c6 {[%clk 0:02:39]} 18. Qc2 {[%clk 0:01:51]}  Rad8 {[%clk 0:02:38]} 19. h3 {[%clk 0:01:46]}  Qe7 {[%clk 0:02:37]} 20. Rf2 {[%clk 0:01:39]}  Nc7 {[%clk 0:02:38]} 21. Raf1 {[%clk 0:01:38]}  Ne6 {[%clk 0:02:38]} 22. Bd3 {[%clk 0:01:27]}  Nd4 {[%clk 0:02:38]} 23. Qd1 {[%clk 0:01:25]}  a5 {[%clk 0:02:31]} 24. g4 {[%clk 0:01:17]}  Nd7 {[%clk 0:02:27]} 25. Ne2 {[%clk 0:01:01]}  Rxf2 {[%clk 0:02:22]} 26. Rxf2 {[%clk 0:01:01]}  Rf8 {[%clk 0:02:22]} 27. Nxd4 {[%clk 0:00:58]}  Rxf2 {[%clk 0:02:17]} 28. Kxf2 {[%clk 0:00:58]}  exd4 {[%clk 0:02:18]} 29. Bf4 {[%clk 0:00:38]}  Ne5 {[%clk 0:02:16]} 30. Bxe5 {[%clk 0:00:33]}  dxe5 {[%clk 0:02:11]} 31. c5 {[%clk 0:00:18]}  axb4 {[%clk 0:02:05]} 32. axb4 {[%clk 0:00:18]}  Qf7+ {[%clk 0:02:05]} 33. Qf3 {[%clk 0:00:18]}  Qa2+ {[%clk 0:02:05]} 34. Kg3 {[%clk 0:00:17]}  Qb3 {[%clk 0:02:02]} 35. h4 {[%clk 0:00:14]}  Qxb4 {[%clk 0:01:31]} 36. h5 {[%clk 0:00:14]}  Qe1+ {[%clk 0:01:31]} 37. Kg2 {[%clk 0:00:14]}  Qd2+ {[%clk 0:01:26]} 38. Kf1 {[%clk 0:00:13]}  Qf4 {[%clk 0:01:25]} 39. Qxf4 {[%clk 0:00:12]}  exf4 {[%clk 0:01:26]} 40. e5 {[%clk 0:00:12]}  Bxe5 {[%clk 0:01:26]} 41. Bxg6+ {[%clk 0:00:12]}  Kg7 {[%clk 0:01:26]} 42. Ke2 {[%clk 0:00:12]}  Bd6 {[%clk 0:01:26]} 43. cxd6 {[%clk 0:00:10]}  Kf6 {[%clk 0:01:26]} 44. d7 {[%clk 0:00:10]}  Ke7 {[%clk 0:01:26]} 45. Bf5 {[%clk 0:00:11]}  c5 {[%clk 0:01:24]} 46. Kf3 {[%clk 0:00:11]}  b5 {[%clk 0:01:22]} 47. g5 {[%clk 0:00:10]}  c4 {[%clk 0:01:19]} 48. gxh6 {[%clk 0:00:09]}  d3 {[%clk 0:01:17]} 49. h7 {[%clk 0:00:08]}  b4 {[%clk 0:01:17]} 50. h8=Q {[%clk 0:00:07]} 1-0


[Site "https://www.chess.com"]

[Event "Titled Tuesday Blitz December 20 Late 2022"]
[White "Shimanov, Aleksandr"]
[Black "Andreikin, Dmitry"]
[WhiteFideId "4198603"]
[BlackFideId "4158814"]
[WhiteElo "2605"]
[BlackElo "2735"]
[Result "1/2-1/2"]
[Round "10"]
[TimeControl "180+1"]
[Date "2022.12.20"]
[WhiteClock "0:00:03"]
[BlackClock "0:00:08"]

1. e4 {[%clk 0:03:00]}  c5 {[%clk 0:03:00]} 2. c3 {[%clk 0:03:01]}  Nf6 {[%clk 0:02:56]} 3. e5 {[%clk 0:03:00]}  Nd5 {[%clk 0:02:56]} 4. Nf3 {[%clk 0:03:01]}  e6 {[%clk 0:02:53]} 5. d4 {[%clk 0:03:00]}  cxd4 {[%clk 0:02:53]} 6. cxd4 {[%clk 0:03:01]}  Nc6 {[%clk 0:02:52]} 7. Bc4 {[%clk 0:02:57]}  d6 {[%clk 0:02:52]} 8. O-O {[%clk 0:02:57]}  dxe5 {[%clk 0:02:50]} 9. dxe5 {[%clk 0:02:56]}  Nb6 {[%clk 0:02:50]} 10. Bd3 {[%clk 0:02:55]}  Nb4 {[%clk 0:02:44]} 11. Be4 {[%clk 0:02:55]}  Qxd1 {[%clk 0:02:41]} 12. Rxd1 {[%clk 0:02:56]}  Bd7 {[%clk 0:02:38]} 13. Bxb7 {[%clk 0:02:50]}  Nc2 {[%clk 0:02:27]} 14. Bxa8 {[%clk 0:02:47]}  Nxa8 {[%clk 0:02:26]} 15. Ne1 {[%clk 0:02:46]}  Nxa1 {[%clk 0:02:24]} 16. Nc3 {[%clk 0:02:43]}  Nb6 {[%clk 0:02:15]} 17. Be3 {[%clk 0:02:42]}  Nc4 {[%clk 0:02:05]} 18. Bxa7 {[%clk 0:02:27]}  Nxb2 {[%clk 0:02:01]} 19. Rxa1 {[%clk 0:02:27]}  Bb4 {[%clk 0:02:01]} 20. Ne4 {[%clk 0:02:26]}  Bc6 {[%clk 0:01:36]} 21. Bc5 {[%clk 0:01:21]}  Bxe4 {[%clk 0:00:47]} 22. Bxb4 {[%clk 0:01:20]}  Kd7 {[%clk 0:00:47]} 23. Rc1 {[%clk 0:01:14]}  Rc8 {[%clk 0:00:42]} 24. Rxc8 {[%clk 0:01:11]}  Kxc8 {[%clk 0:00:43]} 25. f3 {[%clk 0:01:10]}  Bb1 {[%clk 0:00:40]} 26. Bc3 {[%clk 0:01:03]}  Na4 {[%clk 0:00:37]} 27. Bd4 {[%clk 0:01:02]}  Bxa2 {[%clk 0:00:29]} 28. Nd3 {[%clk 0:01:01]}  Bc4 {[%clk 0:00:23]} 29. Nf4 {[%clk 0:01:01]}  g6 {[%clk 0:00:23]} 30. h4 {[%clk 0:01:01]}  Kb7 {[%clk 0:00:21]} 31. h5 {[%clk 0:00:57]}  Kc6 {[%clk 0:00:14]} 32. h6 {[%clk 0:00:55]}  g5 {[%clk 0:00:06]} 33. Nh3 {[%clk 0:00:54]}  Kd5 {[%clk 0:00:07]} 34. Ba1 {[%clk 0:00:49]}  g4 {[%clk 0:00:06]} 35. Ng5 {[%clk 0:00:47]}  Bd3 {[%clk 0:00:04]} 36. Nxf7 {[%clk 0:00:32]}  gxf3 {[%clk 0:00:04]} 37. gxf3 {[%clk 0:00:32]}  Bg6 {[%clk 0:00:05]} 38. Ng5 {[%clk 0:00:18]}  Nc5 {[%clk 0:00:05]} 39. Nh3 {[%clk 0:00:19]}  Nd3 {[%clk 0:00:05]} 40. Kh2 {[%clk 0:00:18]}  Bf5 {[%clk 0:00:05]} 41. Ng5 {[%clk 0:00:16]}  Nxe5 {[%clk 0:00:05]} 42. Kg3 {[%clk 0:00:10]}  Nd3 {[%clk 0:00:05]} 43. f4 {[%clk 0:00:09]}  Bg6 {[%clk 0:00:04]} 44. Nf3 {[%clk 0:00:09]}  Ke4 {[%clk 0:00:03]} 45. Nh4 {[%clk 0:00:09]}  Bf5 {[%clk 0:00:03]} 46. Ng2 {[%clk 0:00:06]}  Bg6 {[%clk 0:00:03]} 47. Bf6 {[%clk 0:00:05]}  Kf5 {[%clk 0:00:02]} 48. Bd8 {[%clk 0:00:04]}  Ke4 {[%clk 0:00:02]} 49. Bc7 {[%clk 0:00:04]}  Bf5 {[%clk 0:00:02]} 50. Nh4 {[%clk 0:00:04]}  Nc1 {[%clk 0:00:02]} 51. Kf2 {[%clk 0:00:03]}  Nd3+ {[%clk 0:00:02]} 52. Kg3 {[%clk 0:00:04]}  Nb4 {[%clk 0:00:02]} 53. Nf3 {[%clk 0:00:03]}  Nd5 {[%clk 0:00:02]} 54. Ng5+ {[%clk 0:00:04]}  Kd3 {[%clk 0:00:02]} 55. Be5 {[%clk 0:00:05]}  Nc3 {[%clk 0:00:02]} 56. Bxc3 {[%clk 0:00:04]}  Kxc3 {[%clk 0:00:03]} 57. Nf3 {[%clk 0:00:04]}  Kd3 {[%clk 0:00:02]} 58. Nh4 {[%clk 0:00:04]}  Ke4 {[%clk 0:00:02]} 59. Nf3 {[%clk 0:00:04]}  Bg6 {[%clk 0:00:02]} 60. Ne5 {[%clk 0:00:04]}  Kf5 {[%clk 0:00:02]} 61. Kf3 {[%clk 0:00:03]}  Bh5+ {[%clk 0:00:02]} 62. Ke3 {[%clk 0:00:04]}  Kf6 {[%clk 0:00:01]} 63. Ke4 {[%clk 0:00:04]}  Bg6+ {[%clk 0:00:01]} 64. Kf3 {[%clk 0:00:05]}  Bf5 {[%clk 0:00:01]} 65. Kg3 {[%clk 0:00:05]}  Be4 {[%clk 0:00:02]} 66. Kg4 {[%clk 0:00:05]}  Bf5+ {[%clk 0:00:02]} 67. Kh5 {[%clk 0:00:06]}  Be4 {[%clk 0:00:02]} 68. Kh4 {[%clk 0:00:05]}  Kf5 {[%clk 0:00:02]} 69. Kg3 {[%clk 0:00:06]}  Kf6 {[%clk 0:00:03]} 70. Kg4 {[%clk 0:00:03]}  Bc2 {[%clk 0:00:02]} 71. Kg3 {[%clk 0:00:03]}  Kf5 {[%clk 0:00:03]} 72. Nf3 {[%clk 0:00:02]}  Kg6 {[%clk 0:00:03]} 73. Nd4 {[%clk 0:00:01]}  Bf5 {[%clk 0:00:03]} 74. Kh4 {[%clk 0:00:01]}  Kxh6 {[%clk 0:00:03]} 75. Nf3 {[%clk 0:00:02]}  Kg6 {[%clk 0:00:03]} 76. Ne5+ {[%clk 0:00:02]}  Kf6 {[%clk 0:00:04]} 77. Nd7+ {[%clk 0:00:03]}  Ke7 {[%clk 0:00:03]} 78. Ne5 {[%clk 0:00:03]}  Kf6 {[%clk 0:00:04]} 79. Nd7+ {[%clk 0:00:03]}  Kg7 {[%clk 0:00:05]} 80. Ne5 {[%clk 0:00:04]}  h6 {[%clk 0:00:05]} 81. Kh5 {[%clk 0:00:03]}  Bc2 {[%clk 0:00:06]} 82. Kh4 {[%clk 0:00:03]}  Bd1 {[%clk 0:00:06]} 83. Kg3 {[%clk 0:00:03]}  Kf6 {[%clk 0:00:06]} 84. Nd7+ {[%clk 0:00:04]}  Kf5 {[%clk 0:00:06]} 85. Ne5 {[%clk 0:00:04]}  h5 {[%clk 0:00:07]} 86. Nc4 {[%clk 0:00:04]}  Be2 {[%clk 0:00:07]} 87. Nd6+ {[%clk 0:00:03]}  Kf6 {[%clk 0:00:07]} 88. Ne4+ {[%clk 0:00:04]}  Kg6 {[%clk 0:00:07]} 89. Nd6 {[%clk 0:00:04]}  Bd1 {[%clk 0:00:07]} 90. Ne4 {[%clk 0:00:05]}  Kf5 {[%clk 0:00:07]} 91. Nd6+ {[%clk 0:00:05]}  Kf6 {[%clk 0:00:08]} 92. Ne4+ {[%clk 0:00:05]}  Kg7 {[%clk 0:00:07]} 93. Kh4 {[%clk 0:00:05]}  Kg6 {[%clk 0:00:07]} 94. Nd6 {[%clk 0:00:04]}  Bg4 {[%clk 0:00:06]} 95. Kg3 {[%clk 0:00:04]}  Kf6 {[%clk 0:00:07]} 96. Kh4 {[%clk 0:00:04]}  Kg6 {[%clk 0:00:06]} 97. Kg3 {[%clk 0:00:04]}  Be2 {[%clk 0:00:07]} 98. Kh4 {[%clk 0:00:04]}  Bd3 {[%clk 0:00:07]} 99. Kg3 {[%clk 0:00:03]}  Bf5 {[%clk 0:00:08]} 100. Kh4 {[%clk 0:00:03]}  Bg4 {[%clk 0:00:08]} 1/2-1/2


[Site "https://www.chess.com"]

[Event "Titled Tuesday Blitz December 20 Late 2022"]
[White "Sjugirov, Sanan"]
[Black "Jobava, Baadur"]
[WhiteFideId "4189302"]
[BlackFideId "13601520"]
[WhiteElo "2613"]
[BlackElo "2582"]
[Result "0-1"]
[Round "10"]
[TimeControl "180+1"]
[Date "2022.12.20"]
[WhiteClock "0:00:02"]
[BlackClock "0:00:19"]

1. d4 {[%clk 0:02:56]}  d5 {[%clk 0:02:58]} 2. c4 {[%clk 0:02:56]}  dxc4 {[%clk 0:02:59]} 3. e4 {[%clk 0:02:51]}  Nf6 {[%clk 0:02:59]} 4. e5 {[%clk 0:02:51]}  Nd5 {[%clk 0:03:00]} 5. Bxc4 {[%clk 0:02:51]}  Bf5 {[%clk 0:03:01]} 6. Qb3 {[%clk 0:02:45]}  c6 {[%clk 0:03:00]} 7. Ne2 {[%clk 0:02:40]}  e6 {[%clk 0:02:48]} 8. O-O {[%clk 0:02:37]}  Be7 {[%clk 0:02:36]} 9. Ng3 {[%clk 0:02:33]}  Bg6 {[%clk 0:02:35]} 10. f4 {[%clk 0:02:17]}  Nb6 {[%clk 0:02:33]} 11. Be3 {[%clk 0:02:14]}  Nxc4 {[%clk 0:02:33]} 12. Qxc4 {[%clk 0:02:15]}  Nd7 {[%clk 0:02:18]} 13. Nc3 {[%clk 0:02:01]}  Nb6 {[%clk 0:02:18]} 14. Qe2 {[%clk 0:01:54]}  Qd7 {[%clk 0:02:11]} 15. Rad1 {[%clk 0:01:48]}  h5 {[%clk 0:02:06]} 16. Nge4 {[%clk 0:01:09]}  h4 {[%clk 0:02:03]} 17. Qf2 {[%clk 0:01:07]}  Rd8 {[%clk 0:01:31]} 18. h3 {[%clk 0:01:04]}  Nd5 {[%clk 0:01:27]} 19. Nc5 {[%clk 0:00:58]}  Qc8 {[%clk 0:01:24]} 20. a3 {[%clk 0:00:48]}  b6 {[%clk 0:01:23]} 21. N5e4 {[%clk 0:00:45]}  Qa6 {[%clk 0:01:20]} 22. Rc1 {[%clk 0:00:35]}  O-O {[%clk 0:01:17]} 23. Nxd5 {[%clk 0:00:30]}  Rxd5 {[%clk 0:01:18]} 24. Ng5 {[%clk 0:00:24]}  Bxg5 {[%clk 0:01:16]} 25. fxg5 {[%clk 0:00:25]}  Qb5 {[%clk 0:01:13]} 26. b4 {[%clk 0:00:20]}  a5 {[%clk 0:01:11]} 27. bxa5 {[%clk 0:00:17]}  Qxa5 {[%clk 0:01:11]} 28. Rxc6 {[%clk 0:00:17]}  Rfd8 {[%clk 0:00:48]} 29. Qb2 {[%clk 0:00:14]}  Rb5 {[%clk 0:00:48]} 30. Qc1 {[%clk 0:00:10]}  Rb3 {[%clk 0:00:46]} 31. Rc8 {[%clk 0:00:08]}  Rxc8 {[%clk 0:00:46]} 32. Qxc8+ {[%clk 0:00:09]}  Kh7 {[%clk 0:00:47]} 33. Qc1 {[%clk 0:00:03]}  Rxa3 {[%clk 0:00:44]} 34. Bf2 {[%clk 0:00:03]}  Ra2 {[%clk 0:00:33]} 35. Qf4 {[%clk 0:00:03]}  Kg8 {[%clk 0:00:32]} 36. Rc1 {[%clk 0:00:02]}  Ra1 {[%clk 0:00:32]} 37. Bxh4 {[%clk 0:00:02]}  b5 {[%clk 0:00:29]} 38. Be1 {[%clk 0:00:02]}  Qa8 {[%clk 0:00:22]} 39. Rxa1 {[%clk 0:00:02]}  Qxa1 {[%clk 0:00:23]} 40. Qd2 {[%clk 0:00:03]}  Be4 {[%clk 0:00:20]} 41. Kh2 {[%clk 0:00:03]}  Bd5 {[%clk 0:00:20]} 42. Qc3 {[%clk 0:00:03]}  Qd1 {[%clk 0:00:20]} 43. Qd2 {[%clk 0:00:02]}  Qh5 {[%clk 0:00:19]} 44. Bf2 {[%clk 0:00:02]}  Qg6 {[%clk 0:00:19]} 45. Bg3 {[%clk 0:00:02]}  Qe4 {[%clk 0:00:19]} 46. h4 {[%clk 0:00:02]}  b4 {[%clk 0:00:19]} 0-1


[Site "https://www.chess.com"]